fUST/lending_fUST_20241019
["ID","MTS","AMOUNT","RATE_DAILY","PERIOD"]
[340461453,1729273847414,-228.097351,0.00014681,2]
[340461454,1729273847423,-228.097351,0.00014681,2]
[340461455,1729273847432,-500.0,0.00014681,2]
[340461456,1729273847443,-500.0,0.00014681,2]
[340461457,1729273847452,-500.0,0.00014681,2]
[340461458,1729273847461,-543.13,0.00014681,2]
[340461459,1729273847472,-850.031638,0.00014681,2]
[340461460,1729273847482,-850.031638,0.00014681,2]
[340461461,1729273847492,-954.62,0.00014681,2]
[340461462,1729273847501,-500.0,0.00014681,2]
[340461463,1729273847511,-850.031638,0.00014681,2]
[340461464,1729273847521,-850.031638,0.00014681,2]
[340461465,1729273847531,-500.0,0.00014681,2]
[340461466,1729273847541,-1327.09,0.00014681,2]
[340461467,1729273847550,-363.350704,0.00014681,2]
[340461468,1729273847559,-363.350704,0.00014681,2]
[340461469,1729273847568,-321.715549,0.00014681,2]
[340461470,1729273847579,-321.715549,0.00014681,2]
[340461471,1729273847589,-363.350704,0.00014681,2]
[340461472,1729273847598,-363.350704,0.00014681,2]
[340461473,1729273847608,-321.715549,0.00014681,2]
[340461474,1729273847619,-321.715549,0.00014681,2]
[340461475,1729273847628,-500.0,0.00014681,2]
[340461476,1729273847638,-500.0,0.00014681,2]
[340461477,1729273847649,-242.371686,0.00014681,2]
[340461478,1729273847658,-375.725447,0.00014681,2]
[340461479,1729273847669,-375.725447,0.00014681,2]
[340461480,1729273847680,-375.725447,0.00014681,2]
[340461481,1729273847691,-375.725447,0.00014681,2]
[340461482,1729273847701,-500.0,0.00014681,2]
[340461483,1729273847711,-500.0,0.00014681,2]
[340461484,1729273847722,-500.0,0.00014681,2]
[340461485,1729273847732,-151.0,0.00014681,2]
[340461486,1729273847743,-501.85704678,0.00014681,2]
[340461487,1729273847752,-759.88,0.00014681,2]
[340461488,1729273847762,-500.0,0.00014681,2]
[340461489,1729273847771,-500.0,0.00014681,2]
[340461490,1729273847781,-500.0,0.00014681,2]
[340461491,1729273847793,-500.0,0.00014681,2]
[340461492,1729273847802,-500.0,0.00014681,2]
[340461493,1729273847812,-500.0,0.00014681,2]
[340461494,1729273847822,-500.0,0.00014681,2]
[340461495,1729273847834,-500.0,0.00014681,2]
[340461496,1729273847847,-500.0,0.00014681,2]
[340461497,1729273847860,-151.0,0.00014682,2]
[340461498,1729273847870,-151.0,0.00014682,2]
[340461499,1729273847880,-151.0,0.00014682,2]
[340461500,1729273847890,-151.0,0.00014682,2]
[340461501,1729273847899,-252.66974,0.00014682,2]
[340461502,1729273847909,-500.0,0.00014682,2]
[340461503,1729273847919,-500.0,0.00014682,2]
[340461504,1729273847928,-229.940292,0.00014682,2]
[340461505,1729273847938,-500.0,0.00014682,2]
[340461506,1729273847947,-151.0,0.00014682,2]
[340461507,1729273847957,-292.06652,0.00014682,2]
[340461508,1729273847968,-151.0,0.00014682,2]
[340461509,1729273847978,-151.0,0.00014682,2]
[340461510,1729273847987,-151.0,0.00014682,2]
[340461511,1729273847997,-228.097351,0.00014682,2]
[340461512,1729273848006,-228.097351,0.00014682,2]
[340461513,1729273848016,-850.031638,0.00014682,2]
[340461514,1729273848025,-850.031638,0.00014682,2]
[340461515,1729273848035,-500.0,0.00014682,2]
[340461516,1729273848046,-363.350704,0.00014682,2]
[340461517,1729273848056,-321.715549,0.00014682,2]
[340461518,1729273848065,-363.350704,0.00014682,2]
[340461519,1729273848075,-321.715549,0.00014682,2]
[340461520,1729273848085,-167.61824454,0.00014682,2]
[340461521,1729273848094,-375.725447,0.00014682,2]
[340461522,1729273848104,-375.725447,0.00014682,2]
[340461523,1729273848113,-500.0,0.00014682,2]
[340461524,1729273848124,-500.0,0.00014682,2]
[340461525,1729273848133,-151.0,0.00014683,2]
[340461526,1729273848144,-151.0,0.00014683,2]
[340461527,1729273848155,-151.0,0.00014683,2]
[340461528,1729273848165,-293.366794,0.00014683,2]
[340461529,1729273848175,-293.2943,0.00014683,2]
[340461530,1729273848185,-151.0,0.00014683,2]
[340461531,1729273848195,-151.0,0.00014683,2]
[340461532,1729273848204,-151.0,0.00014683,2]
[340461533,1729273848216,-151.0,0.00014683,2]
[340461534,1729273848226,-151.0,0.00014683,2]
[340461535,1729273848235,-228.097351,0.00014683,2]
[340461536,1729273848245,-228.097351,0.00014683,2]
[340461537,1729273848254,-850.031638,0.00014683,2]
[340461538,1729273848263,-850.031638,0.00014683,2]
[340461539,1729273848272,-363.350704,0.00014683,2]
[340461540,1729273848282,-321.715549,0.00014683,2]
[340461541,1729273848292,-363.350704,0.00014683,2]
[340461542,1729273848301,-321.715549,0.00014683,2]
[340461543,1729273848311,-375.725447,0.00014683,2]
[340461544,1729273848321,-375.725447,0.00014683,2]
[340461545,1729273848330,-1000.0,0.000147,2]
[340461546,1729273848340,-2791.58471102,0.00014743,2]
[340461547,1729273848349,-31617.9548348,0.00014743,2]
[340461548,1729273848358,-151.0,0.00014753,2]
[340461549,1729273848367,-151.0,0.00014753,2]
[340461550,1729273848377,-228.097351,0.00014753,2]
[340461551,1729273848386,-228.097351,0.00014753,2]
[340461552,1729273848400,-850.031638,0.00014753,2]
[340461553,1729273848409,-850.031638,0.00014753,2]
[340461554,1729273848418,-363.350704,0.00014753,2]
[340461555,1729273848428,-321.715549,0.00014753,2]
[340461556,1729273848438,-363.350704,0.00014753,2]
[340461557,1729273848448,-321.715549,0.00014753,2]
[340461558,1729273848458,-500.0,0.00014761,2]
[340461559,1729273848469,-500.0,0.00014761,2]
[340461560,1729273848482,-184.18656048,0.00014761,2]
[340461561,1729273848492,-152.14227643,0.00014761,2]
[340461562,1729273848501,-536.97037328,0.00014761,2]
[340461563,1729273848511,-275.61433062,0.00014761,2]
[340461564,1729273848520,-9818.78669353,0.00014762,2]
[340461565,1729273848530,-151.0,0.00014762,2]
[340461566,1729273848541,-151.0,0.00014762,2]
[340461567,1729273848720,-23220.32814454,0.00014762,2]
[340461568,1729273848736,-7906.83200825,0.00014762,2]
[340461569,1729273848745,-2791.58471102,0.00014763,2]
[340461570,1729273848754,-1905.69328072,0.00014763,2]
[340461621,1729275032359,-250.0,0.00013699,2]
[340461623,1729275032369,-4204.48516845,0.00014545,2]
[340461625,1729275032379,-1093.91300254,0.0001455,2]
[340461626,1729275032389,-1093.91300254,0.00014553,2]
[340461628,1729275032400,-1093.91300254,0.00014556,2]
[340461630,1729275032410,-1093.91300254,0.00014558,2]
[340461631,1729275032419,-1093.91300254,0.00014561,2]
[340461633,1729275032429,-1000.0,0.00014571,2]
[340461634,1729275032438,-300.0,0.00014639,2]
[340461636,1729275032448,-300.0,0.00014639,2]
[340461637,1729275032457,-164.12290889,0.0001464,2]
[340461638,1729275032467,-8907.4915967,0.0001464,2]
[340461639,1729275032477,-18357.45586222,0.0001464,2]
[340461640,1729275032490,-8830.05508998,0.0001464,2]
[340461641,1729275032499,-243.336377,0.00014645,2]
[340461642,1729275032508,-682.31,0.00014649,2]
[340461643,1729275032518,-7480.92,0.00014649,2]
[340461644,1729275032527,-500.0,0.00014649,2]
[340461645,1729275032537,-956.74,0.00014649,2]
[340461646,1729275032547,-625.1,0.00014649,2]
[340461647,1729275032557,-1221.7,0.00014649,2]
[340461648,1729275032569,-500.0,0.00014649,2]
[340461649,1729275032579,-1003.76,0.00014649,2]
[340461650,1729275032588,-500.0,0.00014649,2]
[340461651,1729275032597,-544.69,0.00014649,2]
[340461652,1729275032606,-500.0,0.00014649,2]
[340461653,1729275032616,-2071.79,0.00014649,2]
[340461654,1729275032626,-1559.66,0.0001465,2]
[340461655,1729275032636,-579.21,0.0001465,2]
[340461656,1729275032646,-3815.82427503,0.0001465,2]
[340461657,1729275032659,-47897.14572497,0.0001465,2]
[340461658,1729275032669,-8907.4915967,0.0001465,2]
[340461659,1729275032678,-27187.5109522,0.0001465,2]
[340461660,1729275032688,-6571.29,0.0001465,2]
[340461661,1729275032698,-500.0,0.0001465,2]
[340461662,1729275032708,-171.125391,0.0001465,2]
[340461663,1729275032717,-500.0,0.0001465,2]
[340461664,1729275032730,-8907.4915967,0.0001465,2]
[340461665,1729275032739,-27187.5109522,0.0001465,2]
[340461666,1729275032749,-8907.4915967,0.00014651,2]
[340461667,1729275032759,-27187.5109522,0.00014651,2]
[340461668,1729275032770,-604.7,0.00014659,2]
[340461669,1729275032781,-500.0,0.00014659,2]
[340461670,1729275032793,-500.0,0.00014659,2]
[340461671,1729275032805,-500.0,0.00014659,2]
[340461672,1729275032816,-2053.26,0.00014659,2]
[340461673,1729275032826,-500.0,0.00014659,2]
[340461674,1729275032836,-846.03,0.00014659,2]
[340461675,1729275032847,-500.0,0.00014659,2]
[340461676,1729275032857,-500.0,0.00014659,2]
[340461677,1729275032867,-600.03,0.00014659,2]
[340461678,1729275032876,-724.12,0.00014659,2]
[340461679,1729275032886,-758.32,0.00014659,2]
[340461680,1729275032896,-500.0,0.00014659,2]
[340461681,1729275032906,-500.0,0.00014659,2]
[340461682,1729275032917,-500.0,0.00014659,2]
[340461683,1729275032927,-500.0,0.00014659,2]
[340461684,1729275032936,-541.48,0.00014659,2]
[340461685,1729275032945,-500.0,0.00014659,2]
[340461686,1729275032955,-607.36,0.00014659,2]
[340461687,1729275032964,-1181.47,0.00014659,2]
[340461688,1729275032973,-1298.29,0.00014659,2]
[340461689,1729275032983,-500.0,0.00014659,2]
[340461690,1729275032992,-741.21,0.00014659,2]
[340461691,1729275033003,-552.64432195,0.00014659,2]
[340461692,1729275033013,-1473.95,0.00014659,2]
[340461693,1729275033023,-552.32465349,0.00014659,2]
[340461694,1729275033033,-500.0,0.00014659,2]
[340461695,1729275033042,-500.0,0.00014659,2]
[340461696,1729275033052,-861.87,0.00014659,2]
[340461697,1729275033062,-500.0,0.00014659,2]
[340461698,1729275033071,-500.0,0.00014659,2]
[340461699,1729275033081,-500.0,0.00014659,2]
[340461700,1729275033091,-500.0,0.00014659,2]
[340461701,1729275033101,-1497.59,0.00014659,2]
[340461702,1729275033110,-519.82400467,0.00014659,2]
[340461703,1729275033120,-204.97151888,0.00014659,2]
[340461743,1729275038472,-641.17,0.00010959,2]
[340461745,1729275038482,-402.09848112,0.00014659,2]
[340461747,1729275038492,-639.21,0.00014659,2]
[340461749,1729275038501,-639.21,0.00014659,2]
[340461750,1729275038511,-639.21,0.00014659,2]
[340461752,1729275038520,-639.21,0.00014659,2]
[340461754,1729275038529,-1530.3,0.00014659,2]
[340461756,1729275038539,-1364.22,0.00014659,2]
[340461757,1729275038548,-594.2766753,0.00014659,2]
[340461758,1729275038575,-185.5733247,0.00014659,2]
[340461759,1729275038584,-500.0,0.00014659,2]
[340461760,1729275038593,-961.04,0.00014659,2]
[340461761,1729275038602,-838.44,0.00014659,2]
[340461762,1729275038611,-500.0,0.00014659,2]
[340461764,1729275038621,-500.0,0.00014659,2]
[340461765,1729275038630,-500.0,0.00014659,2]
[340461766,1729275038641,-399.92510729,0.00014659,2]
[340461767,1729275038650,-509.98,0.00014659,2]
[340461768,1729275038658,-500.0,0.00014659,2]
[340461769,1729275038668,-456.4995935,0.0001466,2]
[340461770,1729275038677,-500.0,0.0001466,2]
[340461771,1729275038686,-192.93003144,0.0001466,2]
[340461772,1729275038695,-225.8792613,0.0001466,2]
[340461773,1729275038704,-109.3944565,0.0001466,2]
[340461774,1729275038716,-774.3734493,0.0001466,2]
[340461807,1729275040402,-182.0920942,0.0001466,2]
[340461809,1729275040412,-500.0,0.0001466,2]
[340461811,1729275040422,-500.0,0.0001466,2]
[340461813,1729275040432,-839.31,0.0001466,2]
[340461815,1729275040443,-548.6,0.0001466,2]
[340461817,1729275040454,-500.0,0.0001466,2]
[340461819,1729275040464,-505.81945939,0.0001466,2]
[340461821,1729275040476,-825.73,0.0001466,2]
[340461823,1729275040485,-266.43408968,0.0001466,2]
[340461917,1729275043920,-233.56591032,0.0001466,2]
[340461918,1729275043930,-500.0,0.0001466,2]
[340461919,1729275043939,-328.20906818,0.0001466,2]
[340461920,1729275043957,-259.99093182,0.0001466,2]
[340461921,1729275043966,-590.16,0.0001466,2]
[340461922,1729275043976,-500.0,0.0001466,2]
[340461923,1729275043986,-500.0,0.0001466,2]
[340461924,1729275043996,-572.5,0.0001466,2]
[340461925,1729275044006,-610.4,0.0001466,2]
[340461926,1729275044016,-151.0,0.0001466,2]
[340461927,1729275044025,-652.32,0.0001466,2]
[340461928,1729275044035,-911.61,0.0001466,2]
[340461929,1729275044045,-585.28,0.0001466,2]
[340461930,1729275044054,-500.0,0.0001466,2]
[340461931,1729275044064,-524.80884854,0.0001466,2]
[340461932,1729275044074,-573.98,0.0001466,2]
[340461933,1729275044084,-500.0,0.0001466,2]
[340461934,1729275044093,-500.0,0.0001466,2]
[340461935,1729275044102,-500.0,0.0001466,2]
[340461936,1729275044112,-151.0,0.0001466,2]
[340461937,1729275044122,-151.0,0.0001466,2]
[340461938,1729275044132,-500.0,0.0001466,2]
[340461939,1729275044143,-500.0,0.0001466,2]
[340461940,1729275044153,-500.0,0.0001466,2]
[340461941,1729275044163,-187.862724,0.0001466,2]
[340461942,1729275044173,-500.0,0.0001466,2]
[340461943,1729275044183,-187.862724,0.0001466,2]
[340461944,1729275044193,-187.862724,0.0001466,2]
[340461945,1729275044203,-187.862724,0.0001466,2]
[340461946,1729275044215,-816.2,0.0001466,2]
[340461947,1729275044225,-639.21,0.0001466,2]
[340461948,1729275044235,-639.21,0.0001466,2]
[340461949,1729275044246,-591.88,0.0001466,2]
[340461950,1729275044256,-911.89,0.0001466,2]
[340461951,1729275044267,-691.58,0.0001466,2]
[340461952,1729275044279,-822.2,0.0001466,2]
[340461953,1729275044290,-500.0,0.0001466,2]
[340461954,1729275044302,-922.73,0.0001466,2]
[340461955,1729275044314,-669.3,0.0001466,2]
[340461956,1729275044326,-553.67957462,0.0001466,2]
[340461957,1729275044336,-500.0,0.0001466,2]
[340461958,1729275044348,-500.0,0.0001466,2]
[340461959,1729275044359,-867.17,0.0001466,2]
[340461960,1729275044371,-500.0,0.0001466,2]
[340461961,1729275044382,-500.0,0.0001466,2]
[340461962,1729275044392,-870.68,0.0001466,2]
[340461963,1729275044402,-634.71,0.0001466,2]
[340461964,1729275044411,-446.60816203,0.0001466,2]
[340461965,1729275044421,-2361.84,0.0001466,2]
[340461966,1729275044431,-340.012656,0.0001466,2]
[340461967,1729275044440,-340.012656,0.0001466,2]
[340461968,1729275044451,-340.012656,0.0001466,2]
[340461969,1729275044460,-340.012656,0.0001466,2]
[340461970,1729275044473,-997.55,0.0001466,2]
[340461971,1729275044484,-500.0,0.0001466,2]
[340461972,1729275044495,-549.51777293,0.0001466,2]
[340461973,1729275044506,-500.0,0.0001466,2]
[340461974,1729275044517,-151.0,0.0001466,2]
[340461975,1729275044527,-151.0,0.0001466,2]
[340461976,1729275044539,-506.49196445,0.0001466,2]
[340461977,1729275044552,-914.84,0.0001466,2]
[340461978,1729275044562,-151.0,0.0001466,2]
[340461979,1729275044573,-151.0,0.0001466,2]
[340461980,1729275044584,-151.0,0.0001466,2]
[340461981,1729275044595,-151.0,0.0001466,2]
[340461982,1729275044606,-151.0,0.0001466,2]
[340461983,1729275044616,-151.0,0.0001466,2]
[340461984,1729275044627,-233.399282,0.0001466,2]
[340461985,1729275044637,-233.399282,0.0001466,2]
[340461986,1729275044648,-500.0,0.0001466,2]
[340461987,1729275044658,-233.399282,0.0001466,2]
[340461988,1729275044668,-233.399282,0.0001466,2]
[340461989,1729275044677,-500.0,0.0001466,2]
[340461990,1729275044688,-500.0,0.0001466,2]
[340461991,1729275044698,-500.0,0.0001466,2]
[340461992,1729275044708,-1271.79,0.0001466,2]
[340461993,1729275044719,-342.24742148,0.0001466,2]
[340461994,1729275044732,-500.0,0.0001466,2]
[340461995,1729275044743,-500.0,0.0001466,2]
[340461996,1729275044753,-728.37,0.0001466,2]
[340461997,1729275044763,-645.63388184,0.0001466,2]
[340461998,1729275044773,-500.0,0.0001466,2]
[340461999,1729275044783,-51.70331082,0.0001466,2]
[340462033,1729275046366,-1000.0,0.00014659,2]
[340462315,1729276232527,-706.29,0.00010959,2]
[340462317,1729276232537,-2832.2260957,0.00013557,2]
[340462319,1729276232549,-1772.14707548,0.00013557,2]
[340462322,1729276232572,-353.23377272,0.00013557,2]
[340462324,1729276232582,-198.76622728,0.00013699,2]
[340462327,1729276232594,-51.23377272,0.00013699,2]
[340462329,1729276232604,-250.51069953,0.000145,2]
[340462331,1729276232614,-132.16260574,0.00014549,2]
[340462333,1729276232625,-291.0020642,0.00014549,2]
[340462391,1729276238905,-555.53533007,0.00014549,2]
[340462393,1729276238916,-441.14896013,0.00014551,2]
[340462394,1729276238926,-300.0,0.00014618,2]
[340462396,1729276238936,-579.5,0.00014618,2]
[340462397,1729276238945,-1021.45,0.00014618,2]
[340462398,1729276238955,-16712.3652232,0.00014619,2]
[340462399,1729276238965,-17714.45721027,0.00014619,2]
[340462400,1729276238977,-469.75632454,0.00014619,2]
[340462404,1729276240463,-7102.07548869,0.00014619,2]
[340462405,1729276240475,-500.0,0.0001462,2]
[340462406,1729276240487,-500.0,0.0001462,2]
[340462407,1729276240498,-500.0,0.0001462,2]
[340462408,1729276240507,-500.0,0.0001462,2]
[340462409,1729276240519,-500.0,0.0001462,2]
[340462410,1729276240531,-500.0,0.0001462,2]
[340462411,1729276240543,-626.02911159,0.0001462,2]
[340462412,1729276240563,-499.99999999,0.0001462,2]
[340462413,1729276240575,-26913.166218,0.0001462,2]
[340462414,1729276240589,-6511.5642283,0.0001462,2]
[340462415,1729276240599,-28321.85190776,0.0001462,2]
[340462416,1729276240613,-3290.01473372,0.0001462,2]
[340462417,1729276240624,-535.5469514,0.0001462,2]
[340462418,1729276240646,-1575.86391492,0.0001462,2]
[340462419,1729276240658,-2006.6392084,0.0001462,2]
[340462420,1729276240902,-792.52409331,0.0001462,2]
[340462421,1729276240914,-966.41937026,0.0001462,2]
[340462436,1729276243724,-4104.26628521,0.0001452,2]
[340462438,1729276243734,-13083.71786733,0.0001462,2]
[340462440,1729276243746,-16712.3652232,0.00014621,2]
[340462442,1729276243757,-25286.2890235,0.00014621,2]
[340462444,1729276243766,-500.0,0.00014628,2]
[340462446,1729276243776,-315.82,0.00014628,2]
[340462448,1729276243786,-227.40800609,0.00014628,2]
[340462450,1729276243796,-2006.29,0.00014628,2]
[340462452,1729276243809,-1307.84,0.00014628,2]
[340462454,1729276243818,-319.54971545,0.00014628,2]
[340462456,1729276243828,-508.1154829,0.00014628,2]
[340462458,1729276243837,-4909.39334676,0.00014629,2]
[340462460,1729276243848,-16712.3652232,0.00014629,2]
[340462462,1729276243858,-25286.2890235,0.00014629,2]
[340462464,1729276243868,-616.59539555,0.00014629,2]
[340462466,1729276243878,-500.0,0.00014629,2]
[340462468,1729276243887,-472.36883078,0.00014629,2]
[340462470,1729276243896,-500.0,0.00014629,2]
[340462472,1729276243907,-500.0,0.00014629,2]
[340462474,1729276243917,-782.19,0.00014629,2]
[340462476,1729276243927,-500.0,0.00014629,2]
[340462479,1729276243936,-567.22,0.00014629,2]
[340462481,1729276243946,-793.48,0.00014629,2]
[340462483,1729276243956,-541.51,0.00014629,2]
[340462485,1729276243966,-500.0,0.00014629,2]
[340462487,1729276243977,-674.71,0.00014629,2]
[340462489,1729276243987,-555.08,0.00014629,2]
[340462491,1729276243998,-7190.05,0.00014629,2]
[340462493,1729276244007,-955.99,0.00014629,2]
[340462495,1729276244016,-916.88,0.00014629,2]
[340462497,1729276244026,-599.05,0.00014629,2]
[340462499,1729276244036,-2263.43,0.00014629,2]
[340462501,1729276244046,-500.0,0.00014629,2]
[340462504,1729276244057,-50414.33,0.00014629,2]
[340462505,1729276244067,-500.0,0.00014629,2]
[340462508,1729276244078,-876.72,0.00014629,2]
[340462510,1729276244090,-1170.8,0.00014629,2]
[340462512,1729276244101,-500.0,0.00014629,2]
[340462514,1729276244113,-6297.49,0.00014629,2]
[340462516,1729276244123,-961.94,0.00014629,2]
[340462518,1729276244133,-500.0,0.00014629,2]
[340462520,1729276244143,-500.0,0.00014629,2]
[340462523,1729276244154,-500.0,0.00014629,2]
[340462525,1729276244165,-151.0,0.00014629,2]
[340462527,1729276244175,-151.0,0.00014629,2]
[340462529,1729276244189,-151.0,0.00014629,2]
[340462531,1729276244198,-151.0,0.00014629,2]
[340462533,1729276244209,-726.07,0.00014629,2]
[340462535,1729276244219,-500.0,0.00014629,2]
[340462537,1729276244230,-500.0,0.00014629,2]
[340462539,1729276244242,-500.0,0.00014629,2]
[340462541,1729276244252,-500.0,0.00014629,2]
[340462543,1729276244262,-500.0,0.00014629,2]
[340462545,1729276244272,-400.74612606,0.00014629,2]
[340462547,1729276244281,-15563.5800764,0.00014629,2]
[340462549,1729276244291,-16712.3652232,0.00014629,2]
[340462551,1729276244302,-25286.2890235,0.00014629,2]
[340462553,1729276244314,-151.0,0.0001463,2]
[340462555,1729276244325,-151.0,0.0001463,2]
[340462557,1729276244334,-151.0,0.0001463,2]
[340462559,1729276244344,-157.492095,0.0001463,2]
[340462561,1729276244354,-157.492095,0.0001463,2]
[340462563,1729276244364,-9632.09467785,0.0001463,2]
[340462770,1729276246553,-275.2516781,0.00014618,2]
[340462772,1729276246564,-7080.27054535,0.0001463,2]
[340462774,1729276246573,-25286.2890235,0.0001463,2]
[340462776,1729276246583,-16712.3652232,0.0001463,2]
[340462778,1729276246592,-25286.2890235,0.0001463,2]
[340462780,1729276246601,-230.204792,0.00014631,2]
[340462782,1729276246611,-151.0,0.00014631,2]
[340462784,1729276246620,-151.0,0.00014631,2]
[340462786,1729276246630,-157.492095,0.00014631,2]
[340462788,1729276246639,-157.492095,0.00014631,2]
[340462790,1729276246648,-272.010124,0.00014631,2]
[340462792,1729276246658,-272.010124,0.00014631,2]
[340462794,1729276246667,-186.719426,0.00014631,2]
[340462796,1729276246676,-186.719426,0.00014631,2]
[340462798,1729276246685,-151.0,0.00014631,2]
[340462800,1729276246694,-151.0,0.00014631,2]
[340462802,1729276246703,-151.0,0.00014631,2]
[340462804,1729276246712,-151.0,0.00014631,2]
[340462806,1729276246722,-163.383154,0.00014631,2]
[340462808,1729276246731,-163.383154,0.00014631,2]
[340462810,1729276246741,-16712.3652232,0.00014631,2]
[340462812,1729276246751,-25286.2890235,0.00014631,2]
[340462814,1729276246760,-500.0,0.00014638,2]
[340462816,1729276246769,-16712.3652232,0.00014639,2]
[340462818,1729276246778,-25286.2890235,0.00014639,2]
[340462820,1729276246787,-500.0,0.00014639,2]
[340462822,1729276246796,-500.0,0.00014639,2]
[340462824,1729276246805,-1967.7,0.00014639,2]
[340462826,1729276246815,-810.78,0.00014639,2]
[340462828,1729276246824,-500.0,0.00014639,2]
[340462830,1729276246833,-575.02,0.00014639,2]
[340462832,1729276246843,-693.94,0.00014639,2]
[340462834,1729276246851,-500.0,0.00014639,2]
[340462836,1729276246860,-518.92,0.00014639,2]
[340462838,1729276246870,-1132.24,0.00014639,2]
[340462840,1729276246879,-500.0,0.00014639,2]
[340462842,1729276246889,-500.0,0.00014639,2]
[340462844,1729276246899,-500.0,0.00014639,2]
[340462846,1729276246909,-500.0,0.00014639,2]
[340462848,1729276246918,-500.0,0.00014639,2]
[340462850,1729276246927,-500.0,0.00014639,2]
[340462852,1729276246936,-581.77,0.00014639,2]
[340462854,1729276246946,-500.0,0.00014639,2]
[340462856,1729276246955,-921.0,0.00014639,2]
[340462858,1729276246964,-151.0,0.00014639,2]
[340462861,1729276246974,-151.0,0.00014639,2]
[340462863,1729276246983,-151.0,0.00014639,2]
[340462865,1729276246993,-151.0,0.00014639,2]
[340462867,1729276247004,-157.492095,0.00014639,2]
[340462869,1729276247013,-157.492095,0.00014639,2]
[340462871,1729276247022,-157.492095,0.00014639,2]
[340462872,1729276247031,-157.492095,0.00014639,2]
[340462874,1729276247041,-311.44,0.00014639,2]
[340462876,1729276247051,-500.0,0.00014639,2]
[340462878,1729276247060,-272.010124,0.00014639,2]
[340462880,1729276247069,-272.010124,0.00014639,2]
[340462882,1729276247078,-272.010124,0.00014639,2]
[340462884,1729276247088,-272.010124,0.00014639,2]
[340462886,1729276247098,-186.719426,0.00014639,2]
[340462888,1729276247108,-186.719426,0.00014639,2]
[340462890,1729276247118,-1218.8,0.00014639,2]
[340462892,1729276247127,-186.719426,0.00014639,2]
[340462894,1729276247137,-186.719426,0.00014639,2]
[340462896,1729276247146,-500.0,0.00014639,2]
[340462898,1729276247156,-500.0,0.00014639,2]
[340462900,1729276247167,-500.0,0.00014639,2]
[340462902,1729276247180,-151.0,0.00014639,2]
[340462904,1729276247191,-151.0,0.00014639,2]
[340462906,1729276247200,-289.2424,0.00014639,2]
[340462908,1729276247210,-151.0,0.00014639,2]
[340462910,1729276247219,-157.724386,0.00014639,2]
[340462912,1729276247228,-163.383154,0.00014639,2]
[340462914,1729276247238,-163.383154,0.00014639,2]
[340462916,1729276247248,-500.0,0.00014639,2]
[340462918,1729276247257,-163.383154,0.00014639,2]
[340462920,1729276247266,-163.383154,0.00014639,2]
[340462922,1729276247276,-500.0,0.00014639,2]
[340462924,1729276247285,-500.0,0.00014639,2]
[340462926,1729276247295,-500.0,0.00014639,2]
[340462928,1729276247304,-500.0,0.00014639,2]
[340462930,1729276247314,-217.42148231,0.0001464,2]
[340462932,1729276247326,-282.57851769,0.0001464,2]
[340462934,1729276247336,-500.0,0.0001464,2]
[340462936,1729276247345,-804.34,0.0001464,2]
[340462938,1729276247355,-500.0,0.0001464,2]
[340462941,1729276247366,-193.41337948,0.0001464,2]
[340462943,1729276247375,-495.94448201,0.0001464,2]
[340463090,1729276630307,168.07,0.00027,60]
[340463551,1729277438197,-184.6,0.00010959,2]